bitfinex-derivatives/quotes_SOLF0:USTF0_20240827
["timestamp","ask_amount","ask_price","bid_price","bid_amount"]
[1724764356401,3.2438,154.1,154.09,0.04498167]
[1724764361610,0.04201744,154.13,154.09,0.04498167]
[1724764362411,3.2434,154.12,154.09,0.04498167]
[1724764363003,0.04201744,154.13,154.09,0.04498167]
[1724764363406,3.2435,154.12,154.09,0.04498167]
[1724764363909,0.04201744,154.13,154.09,0.04498167]
[1724764364607,0.04201744,154.13,154.1,3.2436]
[1724764365513,3.28521744,154.13,154.1,3.2436]
[1724764366416,0.04201744,154.13,154.1,24.93]
[1724764366913,0.04201744,154.13,154.11,3.2436]
[1724764367312,3.28521744,154.13,154.11,3.2436]
[1724764367510,3.28521744,154.13,154.1,28.1737]
[1724764372506,3.2436,154.12,154.1,24.93]
[1724764372709,0.04201744,154.13,154.09,0.04498167]
[1724764373211,3.2438,154.1,154.09,0.04498167]
[1724764380622,3.2438,154.1,154.01,26.2256]
[1724764380623,24.93,154.1,154.01,26.2256]
[1724764380829,29.21,154.1,154.02,12.81309933]
[1724764381030,3.245,154.04,154.03,10.62049445]
[1724764381231,3.245,154.04,154.03,4.65577641]
[1724764381419,1.2453,154.09,154.03,4.65577641]
[1724764381623,3.29382137,154.05,154.02,6.01302849]
[1724764381922,3.29382137,154.05,154.02,0.04767473]
[1724764382123,0.04892137,154.05,154.03,26.22835364]
[1724764382319,0.04892137,154.05,154.04,1.29835364]
[1724764382523,0.04892137,154.05,154.04,3.245]
[1724764382723,0.04892137,154.05,154.04,7.90126934]
[1724764383023,0.04892137,154.05,154.04,3.35795939]
[1724764383231,0.04892137,154.05,154.02,0.04767473]
[1724764383430,0.04892137,154.05,154.03,4.65575697]
[1724764383636,0.04892137,154.05,154.02,2.24090323]
[1724764383833,0.04892137,154.05,154.03,1.29834161]
[1724764384037,3.29372137,154.05,154.02,3.29297473]
[1724764384241,0.04892137,154.05,154.03,4.65667884]
[1724764384432,0.04892137,154.05,154.02,0.04767473]
[1724764384634,3.29382137,154.05,154.02,0.04767473]
[1724764385334,3.29382137,154.05,154.02,3.29317473]
[1724764385335,0.04892137,154.05,154.02,3.29317473]
[1724764385541,0.04892137,154.05,154.03,3.35941927]
[1724764385734,0.04892137,154.05,154.02,24.97767473]
[1724764385935,0.04892137,154.05,154.03,10.62454945]
[1724764386133,0.04892137,154.05,154.04,4.65747025]
[1724764386833,0.04892137,154.05,154.04,1.29837021]
[1724764387035,0.04892137,154.05,154.04,4.65677941]
[1724764387441,0.04892137,154.05,154.04,7.90177941]
[1724764388143,0.04892137,154.05,154.04,6.6034092]
[1724764388345,0.04892137,154.05,154.04,7.90168175]
[1724764389541,0.04892137,154.05,154.04,13.86715926]
[1724764390045,0.04892137,154.05,154.04,16.05985503]
[1724764390537,4.28,154.11,154.08,3.244]
[1724764390734,4.28,154.13,154.08,3.244]
[1724764391332,4.28,154.13,154.03,2.5773]
[1724764391536,4.28,154.13,154.04,4.656904]
[1724764391738,3.28501109,154.1,154.06,0.04725424]
[1724764392138,3.28501109,154.1,154.06,3.29175424]
[1724764392338,0.04111109,154.1,154.06,0.04725424]
[1724764392741,0.04111109,154.1,154.06,3.29185424]
[1724764393045,0.04111109,154.1,154.06,0.04725424]
[1724764393837,0.04111109,154.1,154.07,3.2444]
[1724764394943,3.28501109,154.1,154.07,3.2444]
[1724764397241,3.28501109,154.1,154.07,3.2443]
[1724764397441,0.04111109,154.1,154.06,0.04725424]
[1724764397849,0.04111109,154.1,154.08,3.2442]
[1724764399150,0.04111109,154.1,154.09,3.244]
[1724764404148,3.28501109,154.1,154.06,10.02725424]
[1724764404847,3.28501109,154.1,154.07,3.2442]
[1724764405943,3.28501109,154.1,154.08,3.2442]
[1724764410847,3.2441,154.09,154.07,3.2443]
[1724764411046,3.2441,154.09,154.06,10.02725424]
[1724764411756,3.2441,154.09,154.06,13.27185424]
[1724764411952,3.2443,154.08,154.06,3.29185424]
[1724764414453,0.04111109,154.1,154.09,3.244]
[1724764414748,1.3447,154.16,154.09,9.98]
[1724764414951,3.2429,154.15,154.08,4.28]
[1724764415148,11.3247,154.16,154.09,13.22094586]
[1724764415453,11.3247,154.16,154.1,9.98]
[1724764415454,3.2428,154.15,154.1,9.98]
[1724764415651,0.04445101,154.14,154.12,9.98]
[1724764416052,0.04445101,154.14,154.11,3.29085695]
[1724764416254,0.04445101,154.14,154.11,0.04735695]
[1724764416852,9.98,154.12,154.11,0.04735695]
[1724764417258,13.2234,154.12,154.11,0.04735695]
[1724764417662,13.2234,154.12,153.9,6.4957]
[1724764417663,9.98,154.12,153.9,6.4957]
[1724764417857,9.98,154.04,153.96,8.05385727]
[1724764418060,24.94,154.03,154.01,3.35881459]
[1724764418356,3.2457,154.01,153.94,8.05385727]
[1724764418567,26.20585214,154.02,153.93,8.05385727]
[1724764418753,24.94,153.97,153.94,4.65159782]
[1724764418953,26.164,154.02,153.92,24.94]
[1724764419160,4.28,154.0,153.93,12.81305228]
[1724764419359,4.28,154.0,153.88,71.00250656]
[1724764419360,29.22,154.0,153.94,4.65227297]
[1724764419550,29.22,154.0,153.9,24.94]
[1724764419551,3.2465,153.98,153.92,3.2474]
[1724764419860,0.04472178,153.97,153.93,1.34775589]
[1724764420157,0.04472178,153.97,153.95,3.2468]
[1724764420354,0.04472178,153.97,153.94,24.94]
[1724764420553,0.04472178,153.97,153.96,24.94]
[1724764420755,0.04472178,153.97,153.96,29.48575196]
[1724764421155,24.94,154.06,153.99,3.2461]
[1724764421364,4.28,154.05,153.99,3.2461]
[1724764422155,0.04337985,154.04,154.0,3.29312478]
[1724764422764,0.04337985,154.04,154.0,0.04732478]
[1724764423567,3.28857985,154.04,154.0,0.04732478]
[1724764423957,0.04337985,154.04,154.0,0.04732478]
[1724764425063,24.98337985,154.04,154.0,0.04732478]
[1724764425673,3.2453,154.03,154.0,0.04732478]
[1724764425866,24.98337985,154.04,154.0,0.04732478]
[1724764426168,3.2457,154.01,154.0,0.04732478]
[1724764430270,3.2455,154.02,154.0,0.04732478]
[1724764430470,24.98337985,154.04,154.0,0.04732478]
[1724764431377,3.2457,154.01,154.0,0.04732478]
[1724764431681,4.28,154.03,154.0,0.04732478]
[1724764432086,3.2456,154.02,154.0,0.04732478]
[1724764432591,0.04337985,154.04,154.01,24.94]
[1724764432886,4.28,154.12,154.03,24.94]
[1724764433089,4.28,154.12,154.03,28.14951513]
[1724764433282,3.2438,154.1,154.05,3.2446]
[1724764433680,0.04257906,154.09,154.06,0.04335473]
[1724764434692,3.28657906,154.09,154.06,0.04335473]
[1724764436492,3.2444,154.07,154.06,0.04335473]
[1724764438985,3.2442,154.08,154.06,0.04335473]
[1724764440697,3.2444,154.07,154.06,0.04335473]
[1724764441400,3.2443,154.08,154.06,0.04335473]
[1724764441796,3.28667906,154.09,154.06,0.04335473]
[1724764443094,3.28667906,154.09,154.06,3.28795473]
[1724764443291,3.2442,154.08,154.06,0.04335473]
[1724764444402,3.2444,154.07,154.06,0.04335473]
[1724764447510,24.94,154.08,153.98,3.2463]
[1724764447511,3.2457,154.02,153.98,3.2463]
[1724764447707,24.94,154.04,153.93,28.8538]
[1724764447903,3.2462,153.99,153.95,3.2469]
[1724764448099,3.2462,153.99,153.93,3.9138]
[1724764448502,0.04807864,153.98,153.94,0.04366903]
[1724764448707,24.98807864,153.98,153.94,0.04366903]
[1724764449400,24.94,153.96,153.94,0.04366903]
[1724764449702,3.2469,153.95,153.94,0.04366903]
[1724764450100,38.7069,153.95,153.94,0.04366903]
[1724764450608,3.2478,153.92,153.87,3.2486]
[1724764451002,35.46,153.95,153.84,35.0379]
[1724764451707,3.28975793,153.91,153.88,0.0457784]
[1724764454602,0.04175793,153.91,153.88,0.0457784]
[1724764455212,0.04175793,153.91,153.89,3.2481]
[1724764456107,0.04175793,153.91,153.88,3.2941784]
[1724764456511,0.04175793,153.91,153.88,0.0457784]
[1724764457805,3.2482,153.9,153.88,0.0457784]
[1724764458614,0.04175793,153.91,153.88,0.0457784]
[1724764459614,0.04175793,153.91,153.88,3.2940784]
[1724764460406,3.28955793,153.91,153.88,0.0457784]
[1724764462013,3.28955793,153.91,153.88,3.2941784]
[1724764463609,3.248,153.9,153.88,0.0457784]
[1724764466612,3.2482,153.89,153.88,0.0457784]
[1724764468715,31.22175793,153.91,153.88,0.0457784]
[1724764468924,0.04175793,153.91,153.88,0.0457784]
[1724764470319,3.2481,153.9,153.88,0.0457784]
[1724764471013,3.2482,153.89,153.88,0.0457784]
[1724764473432,0.04175793,153.91,153.9,3.248]
[1724764473717,24.95,154.0,153.9,3.17088181]
[1724764474022,24.95,153.96,153.91,2.6149]
[1724764474223,4.28,154.0,153.9,3.25956645]
[1724764474224,24.95,153.94,153.9,3.25956645]
[1724764474521,24.95,153.94,153.87,1.3066]
[1724764474727,24.99119731,153.94,153.9,0.04924434]
[1724764474926,28.23839731,153.94,153.9,0.04924434]
[1724764476313,28.23839731,153.94,153.9,3.29724434]
[1724764476919,3.2474,153.93,153.9,0.04924434]
[1724764477627,24.99119731,153.94,153.9,0.04924434]
[1724764477628,28.23839731,153.94,153.9,0.04924434]
[1724764481325,28.23839731,153.94,153.9,3.29724434]
[1724764481518,3.28839731,153.94,153.9,3.29724434]
[1724764482823,3.28839731,153.94,153.91,3.2478]
[1724764486622,3.2474,153.93,153.9,3.29704434]
[1724764486820,0.04119731,153.94,153.9,0.04924434]
[1724764486821,24.95,153.92,153.9,0.04924434]
[1724764487025,24.95,153.92,153.83,1.2556]
[1724764487220,24.95,153.88,153.84,3.2492]
[1724764487929,24.99386883,153.88,153.84,3.2492]
[1724764488118,24.99386883,153.88,153.84,3.29907213]
[1724764488322,28.24246883,153.88,153.84,3.29907213]
[1724764488521,24.99386883,153.88,153.84,3.29907213]
[1724764489630,28.24236883,153.88,153.84,3.29907213]
[1724764490427,28.24236883,153.88,153.85,3.249]
[1724764490428,3.29236883,153.88,153.85,3.249]
[1724764490624,0.04386883,153.88,153.85,3.249]
[1724764492530,0.04386883,153.88,153.86,3.2488]
[1724764492728,0.04386883,153.88,153.84,0.04987213]
[1724764492729,0.04386883,153.88,153.84,1.38547213]
[1724764493129,0.04386883,153.88,153.87,3.2486]
[1724764493333,4.28,153.93,153.85,29.23]
[1724764493531,4.28,153.93,153.86,1.2689]
[1724764494128,24.95,153.92,153.86,1.2689]
[1724764494428,24.95,153.92,153.87,3.29551576]
[1724764494429,3.2481,153.9,153.87,3.29551576]
[1724764494635,3.2481,153.9,153.87,0.04701576]
[1724764495030,3.2483,153.89,153.87,0.04701576]
[1724764498129,3.2481,153.9,153.87,3.29551576]
[1724764500238,3.2482,153.89,153.87,3.29551576]
[1724764501241,0.04095974,153.91,153.87,0.04701576]
[1724764501731,0.04095974,153.91,153.89,3.2481]
[1724764503327,3.28875974,153.91,153.89,3.2481]
[1724764503838,0.04095974,153.91,153.9,3.248]
[1724764504540,0.04095974,153.91,153.9,6.51916316]
[1724764505833,226.5142,154.03,153.92,24.95]
[1724764506034,3.2459,154.01,153.95,24.95]
[1724764506237,24.95,154.0,153.92,1.2682]
[1724764506843,0.04558088,153.98,153.94,0.04642211]
[1724764508148,0.04558088,153.98,153.94,3.29342211]
[1724764509042,0.04558088,153.98,153.96,3.2467]
[1724764511950,0.04558088,153.98,153.95,3.2469]
[1724764512146,24.99558088,153.98,153.94,0.04642211]
[1724764512448,3.2468,153.96,153.94,0.04642211]
[1724764513738,3.2466,153.97,153.94,0.04642211]
[1724764513950,24.99558088,153.98,153.94,0.04642211]
[1724764514351,3.2467,153.97,153.94,0.04642211]
[1724764515448,3.2467,153.97,153.94,3.29352211]
[1724764517445,3.29198088,153.98,153.95,3.2469]
[1724764521555,0.04558088,153.98,153.94,0.04642211]
[1724764521765,0.04558088,153.98,153.94,29.27642211]
[1724764521965,0.04558088,153.98,153.96,24.95]
[1724764522860,0.04558088,153.98,153.97,3.2465]
[1724764525764,0.04558088,153.98,153.96,24.95]
[1724764525765,3.29188088,153.98,153.96,3.2467]
[1724764525957,0.04558088,153.98,153.96,3.2467]
[1724764526461,0.04558088,153.98,153.95,1.2443]
[1724764527364,0.04558088,153.98,153.97,3.2465]
[1724764527560,0.04558088,153.98,153.95,1.2443]
[1724764527868,0.04558088,153.98,153.94,4.32642211]
[1724764528058,0.04558088,153.98,153.96,3.2466]
[1724764528874,0.04558088,153.98,153.97,3.2465]
[1724764531169,0.04558088,153.98,153.96,3.2466]
[1724764532772,0.04558088,153.98,153.97,3.2465]
[1724764533368,0.04558088,153.98,153.94,29.27642211]
[1724764533565,0.04558088,153.98,153.96,3.2466]
[1724764534161,0.04558088,153.98,153.97,3.2465]
[1724764535163,0.04558088,153.98,153.96,3.2467]
[1724764535471,0.04558088,153.98,153.94,29.27642211]
[1724764535875,0.04558088,153.98,153.97,3.2465]
[1724764537872,0.04558088,153.98,153.94,29.27642211]
[1724764537873,0.04558088,153.98,153.95,3.2467]
[1724764538473,3.29198088,153.98,153.95,3.2467]
[1724764538973,3.29198088,153.98,153.96,3.2467]
[1724764543179,0.04558088,153.98,153.97,3.2465]
[1724764544381,3.29188088,153.98,153.96,13.2266]
[1724764544582,3.29188088,153.98,153.94,14.30642211]
[1724764545175,0.04558088,153.98,153.96,3.2466]
[1724764546273,0.04558088,153.98,153.97,13.2265]
[1724764547884,11.2026,154.1,153.97,49.9]
[1724764548183,1.2226,154.1,154.04,9.98]
[1724764548579,11.256,154.12,154.05,13.29340394]
[1724764548786,11.256,154.12,154.07,0.04731072]
[1724764548787,0.04686077,154.1,154.07,0.04731072]
[1724764548981,3.2442,154.08,154.07,0.04731072]
[1724764549183,9.98,154.08,154.02,3.2454]
[1724764549384,9.98,154.06,153.98,1.3376]
[1724764549581,9.98,154.06,154.01,3.2457]
[1724764549582,3.245,154.05,154.01,3.2457]
[1724764549978,3.2446,154.07,154.02,3.2453]
[1724764550284,0.04344058,154.06,154.03,0.04271198]
[1724764550481,0.04344058,154.06,154.04,3.19947685]
[1724764550882,0.04344058,154.06,154.03,3.28801198]
[1724764551875,0.04344058,154.06,154.03,6.58908528]
[1724764552088,0.04344058,154.06,154.03,3.28801198]
[1724764552789,0.04344058,154.06,154.04,3.22771612]
[1724764554186,0.04344058,154.06,154.04,6.47271612]
[1724764555380,0.04344058,154.06,154.05,3.2448]
[1724764572093,3.2439,154.1,154.07,3.2443]
[1724764572300,3.2439,154.1,154.08,9.97]
[1724764573396,3.2439,154.1,154.08,13.2142]
[1724764573596,3.28528494,154.11,154.08,13.2142]
[1724764576802,3.28528494,154.11,154.07,0.04889077]
[1724764576803,0.04168494,154.11,154.07,0.04889077]
[1724764577098,10.01168494,154.11,154.07,0.04889077]
[1724764577497,0.04168494,154.11,154.08,9.97]
[1724764577692,0.04168494,154.11,154.07,0.04889077]
[1724764577693,0.04168494,154.11,154.1,9.97]
[1724764578295,0.04168494,154.11,154.1,13.2138]
[1724764579003,3.2429,154.15,154.11,3.2435]
[1724764579306,3.2429,154.15,154.13,9.97]
[1724764579707,3.2429,154.14,154.13,9.97]
[1724764580203,0.04713289,154.15,154.13,9.97]
[1724764580795,3.28993289,154.15,154.13,9.97]
[1724764582501,3.2429,154.14,154.13,9.97]
[1724764584708,3.28993289,154.15,154.13,9.97]
[1724764585106,0.04713289,154.15,154.13,9.97]
[1724764585604,0.04713289,154.15,154.13,13.213]
[1724764586705,3.28983289,154.15,154.13,9.97]
[1724764587505,0.04713289,154.15,154.13,13.2131]
[1724764590900,0.04713289,154.15,154.13,3.2431]
[1724764591102,0.04713289,154.15,154.14,9.97]
[1724764592506,3.6742,154.25,154.14,9.97]
[1724764592710,3.6742,154.25,154.12,43.23884278]
[1724764592711,4.28,154.24,154.19,9.97]
[1724764593416,3.2417,154.2,154.19,9.97]
[1724764594813,3.2419,154.19,154.18,0.0467839]
[1724764599419,9.97,154.2,154.12,13.2132]
[1724764600011,9.97,154.18,154.12,9.97]
[1724764600315,0.04684544,154.17,154.13,0.04307816]
[1724764601212,9.97,154.16,154.13,0.04307816]
[1724764601421,3.2429,154.14,154.13,0.04307816]
[1724764603219,3.2429,154.15,154.13,10.01307816]
[1724764604023,3.2429,154.14,154.13,10.01307816]
[1724764607319,3.2428,154.15,154.13,10.01307816]
[1724764607622,0.04684544,154.17,154.14,9.97]
[1724764607927,0.04684544,154.17,154.16,9.97]
[1724764608820,0.04684544,154.17,154.13,0.04307816]
[1724764609128,0.04684544,154.17,154.13,10.01307816]
[1724764609323,0.04684544,154.17,154.13,0.04307816]
[1724764610018,3.2427,154.16,154.13,0.04307816]
[1724764610224,3.2427,154.16,154.13,10.01307816]
[1724764610425,3.2427,154.16,154.15,9.97]
[1724764610719,3.28924544,154.17,154.15,9.97]
[1724764611125,3.2425,154.16,154.15,9.97]
[1724764612715,3.28924544,154.17,154.15,9.97]
[1724764614021,224.0,154.28,154.16,9.97]
[1724764614221,4.28,154.24,154.2,9.97]
[1724764615135,3.2415,154.21,154.2,0.04621068]
[1724764621427,3.2415,154.21,154.2,10.01621068]
[1724764623734,3.2413,154.23,154.2,13.25791068]
[1724764623928,3.2413,154.23,154.22,9.97]
[1724764624538,3.2414,154.22,154.21,9.97]
[1724764624738,0.04940681,154.24,154.2,0.04621068]
[1724764625137,3.2414,154.22,154.2,10.01621068]
[1724764625336,0.04940681,154.24,154.21,9.97]
[1724764625840,3.2412,154.23,154.21,9.97]
[1724764626241,3.2412,154.23,154.2,13.25781068]
[1724764626738,3.2414,154.22,154.2,0.04621068]
[1724764627333,3.2414,154.23,154.2,0.04621068]
[1724764627636,0.04940681,154.24,154.2,0.04621068]
[1724764628237,3.2417,154.22,154.2,0.04621068]
[1724764629136,3.2418,154.21,154.2,0.04621068]
[1724764629334,9.97,154.22,154.11,3.30770577]
[1724764629529,9.97,154.19,154.1,5.94347881]
[1724764629731,3.243,154.16,154.12,3.2436]
[1724764629935,9.97,154.19,154.11,13.25987011]
[1724764630142,9.97,154.19,154.13,3.2433]
[1724764630340,0.04758978,154.18,154.14,0.0477495]
[1724764630641,0.04758978,154.18,154.14,10.0177495]
[1724764630840,3.29008978,154.18,154.14,13.2608495]
[1724764631344,0.04758978,154.18,154.14,13.2608495]
[1724764631843,3.2428,154.16,154.14,0.0477495]
[1724764632838,0.04758978,154.18,154.14,10.0177495]
[1724764633344,3.29018978,154.18,154.15,3.2431]
[1724764634144,3.29018978,154.18,154.14,13.2609495]
[1724764634845,0.04758978,154.18,154.14,0.0477495]
[1724764635146,9.97,154.17,154.14,0.0477495]
[1724764635540,10.01758978,154.18,154.14,0.0477495]
[1724764635744,49.85,154.15,154.05,7.2509216]
[1724764635947,3.2452,154.05,153.99,13.6469]
[1724764636137,9.97,154.03,153.99,3.6769]
[1724764636447,3.2466,153.99,153.94,3.30434127]
[1724764636738,0.04166729,153.98,153.95,0.04921676]
[1724764636948,0.04904564,153.98,153.95,0.04191282]
[1724764637140,3.2469,153.97,153.95,0.04191282]
[1724764638142,0.04904564,153.98,153.96,9.97]
[1724764638346,10.78530887,154.06,153.96,49.85]
[1724764638539,4.28,154.05,153.99,9.97]
[1724764639244,0.04166091,154.04,154.0,0.04751116]
[1724764641450,4.32166091,154.04,154.0,1.38141116]
[1724764642352,7.56726091,154.04,154.0,1.38141116]
[1724764642654,3.28726091,154.04,154.0,4.62741116]
[1724764644552,3.2457,154.03,154.0,1.38141116]
[1724764644851,0.04166091,154.04,154.0,1.38141116]
[1724764645056,3.246,154.01,154.0,0.04751116]
[1724764647350,3.2456,154.03,154.0,0.04751116]
[1724764647548,7.5256,154.03,154.0,0.04751116]
[1724764655058,3.246,154.02,154.0,0.04751116]
[1724764655262,4.28,154.03,154.0,0.04751116]
[1724764656258,3.246,154.01,154.0,0.04751116]
[1724764660964,4.28,154.03,154.0,0.04751116]
[1724764661669,3.2458,154.02,154.0,0.04751116]
[1724764661865,4.28,154.03,154.0,3.29371116]
[1724764662565,7.5257,154.03,154.0,3.29371116]
[1724764663266,3.2458,154.02,154.0,0.04751116]
[1724764664565,4.28,154.03,154.0,0.04751116]
[1724764665370,3.246,154.01,154.0,0.04751116]
[1724764665570,4.28,154.03,154.0,0.04751116]
[1724764667563,3.246,154.01,154.0,0.04751116]
[1724764667873,4.28,154.02,154.0,0.04751116]
[1724764668264,3.246,154.01,154.0,0.04751116]
[1724764668470,24.98166091,154.04,154.0,0.04751116]
[1724764668471,4.28,154.03,154.0,0.04751116]
[1724764668760,7.5256,154.03,154.0,0.04751116]
[1724764669074,4.28,154.03,154.0,0.04751116]
[1724764669667,4.28,154.03,154.0,3.29371116]
[1724764670067,4.28,154.03,154.0,0.04751116]
[1724764670271,0.28,154.03,154.01,3.2458]
[1724764670873,0.04166091,154.04,154.01,3.2458]
[1724764671277,3.28716091,154.04,154.01,3.2458]
[1724764674573,24.94,154.09,154.01,3.2458]
[1724764674871,4.28,154.07,154.01,4.5739]
[1724764675576,0.0482087,154.06,154.02,3.29232034]
[1724764675971,3.2453,154.05,154.02,0.04652034]
[1724764677179,3.2454,154.04,154.02,0.04652034]
[1724764677373,0.0482087,154.06,154.02,0.04652034]
[1724764678276,3.2452,154.05,154.02,0.04652034]
[1724764678971,3.2454,154.04,154.02,0.04652034]
[1724764680177,3.2454,154.04,154.02,3.29232034]
[1724764680370,3.2452,154.05,154.02,3.29232034]
[1724764680768,0.0482087,154.06,154.03,3.2455]
[1724764680975,3.2933087,154.06,154.03,3.2455]
[1724764681566,0.0482087,154.06,154.03,28.24161227]
[1724764681973,0.0482087,154.06,154.03,30.76851227]
[1724764682174,4.28,154.11,154.05,24.94]
[1724764682575,3.2443,154.1,154.07,3.2447]
[1724764683073,3.28679437,154.1,154.07,3.29281464]
[1724764683874,3.2443,154.09,154.07,0.04811464]
[1724764684471,3.2445,154.08,154.07,0.04811464]
[1724764685384,3.2444,154.09,154.07,0.04811464]
[1724764685871,0.04249437,154.1,154.07,0.04811464]
[1724764686273,3.28669437,154.1,154.07,0.04811464]
[1724764686676,3.28669437,154.1,154.07,3.29271464]
[1724764686884,3.2443,154.09,154.07,0.04811464]
[1724764687788,3.28669437,154.1,154.07,0.04811464]
[1724764688277,3.2443,154.09,154.07,0.04811464]
[1724764689484,3.28669437,154.1,154.07,3.29281464]
[1724764691086,0.04249437,154.1,154.07,0.04811464]
[1724764692484,24.94,154.09,154.07,0.04811464]
[1724764692684,3.2445,154.08,154.07,0.04811464]
[1724764694788,3.2457,154.03,153.99,3.2463]
[1724764694987,3.2457,154.03,153.98,2.5229]
[1724764695294,3.2455,154.04,154.0,3.2461]
[1724764695796,3.29140008,154.04,154.0,3.29574677]
[1724764699997,3.29140008,154.04,154.01,3.2458]
[1724764700494,0.04590008,154.04,154.0,0.04964677]
[1724764701196,0.04590008,154.04,154.02,3.2456]
[1724764703395,0.04590008,154.04,154.0,0.04964677]
[1724764703699,0.04590008,154.04,154.03,3.2456]
[1724764703898,0.04590008,154.04,154.03,4.4887]
[1724764711003,3.29140008,154.04,154.01,3.246]
[1724764711206,0.04590008,154.04,154.0,0.04964677]
[1724764711706,3.2457,154.03,154.0,3.29574677]
[1724764711908,0.04590008,154.04,154.0,0.04964677]
[1724764712112,24.94,154.03,154.0,0.04964677]
[1724764712807,3.246,154.01,154.0,0.04964677]
[1724764717212,28.186,154.01,154.0,0.04964677]
[1724764722720,24.94,154.01,153.92,1.3388]
[1724764722922,24.94,153.97,153.93,1.29926022]
[1724764723115,24.94,153.97,153.92,1.3388]
[1724764723311,3.2475,153.95,153.92,1.3388]
[1724764723821,3.29638309,153.95,153.92,1.38837108]
[1724764724421,3.29638309,153.95,153.92,4.63627108]
[1724764725216,3.2476,153.94,153.92,1.38837108]
[1724764725416,0.04888309,153.95,153.92,1.38837108]
[1724764726225,0.04888309,153.95,153.92,4.63607108]
[1724764726619,0.04888309,153.95,153.94,3.2475]
[1724764727329,24.94,154.03,153.94,24.94]
[1724764727525,4.28,154.02,153.94,24.94]
[1724764728024,3.2463,154.0,153.97,3.2467]
[1724764728420,3.28801148,154.0,153.97,3.29220592]
[1724764728925,3.2465,153.99,153.97,0.04550592]
[1724764729928,3.2466,153.98,153.97,0.04550592]
[1724764730921,3.2465,153.99,153.97,0.04550592]
[1724764735124,0.04171148,154.0,153.97,0.04550592]
[1724764735330,3.2466,153.98,153.97,0.04550592]
[1724764735719,3.2465,153.99,153.97,0.04550592]
[1724764736722,0.04171148,154.0,153.97,0.04550592]
[1724764738225,3.2465,153.99,153.97,0.04550592]
[1724764739630,3.28801148,154.0,153.97,3.29230592]
[1724764740026,3.28801148,154.0,153.97,0.04550592]
[1724764740027,0.04171148,154.0,153.97,0.04550592]
[1724764740227,0.04171148,154.0,153.98,3.2466]
[1724764740730,3.28801148,154.0,153.97,3.29230592]
[1724764740928,3.28801148,154.0,153.97,0.04550592]
[1724764740929,0.04171148,154.0,153.97,0.04550592]
[1724764741433,0.04171148,154.0,153.99,3.2464]
[1724764742734,0.04171148,154.0,153.98,3.2466]
[1724764744828,0.04171148,154.0,153.99,3.2464]
[1724764745233,0.04171148,154.0,153.97,0.04550592]
[1724764745534,0.04171148,154.0,153.98,3.2465]
[1724764746136,24.94,153.99,153.97,0.04550592]
[1724764746730,24.94,153.99,153.92,3.2479]
[1724764747042,24.94,153.95,153.89,2.6636]
[1724764747336,24.94,153.91,153.87,1.2421]
[1724764747737,3.2485,153.9,153.87,1.28999386]
[1724764748035,24.9884577,153.91,153.87,0.04789386]
[1724764748245,24.94,153.89,153.87,0.04789386]
[1724764748830,3.2487,153.88,153.87,0.04789386]
[1724764752042,28.23696283,153.91,153.87,0.04789386]
[1724764752437,24.9884577,153.91,153.87,0.04789386]
[1724764752636,3.2484,153.9,153.87,0.04789386]
[1724764753340,3.2487,153.89,153.87,0.04789386]
[1724764753541,0.0484577,153.91,153.87,0.04789386]
[1724764754345,3.2967577,153.91,153.87,3.29679386]
[1724764755341,3.2484,153.9,153.87,3.29679386]
[1724764755836,0.0484577,153.91,153.87,3.29679386]
[1724764756042,3.2966577,153.91,153.88,3.2487]
[1724764758849,3.2966577,153.91,153.87,3.29679386]
[1724764759342,0.0484577,153.91,153.87,0.04789386]
[1724764759549,24.94,153.9,153.87,0.04789386]
[1724764759747,3.2487,153.88,153.87,0.04789386]
[1724764762051,3.2487,153.89,153.87,0.04789386]
[1724764762246,24.94,153.9,153.87,0.04789386]
[1724764762642,3.2487,153.88,153.87,0.04789386]
[1724764764653,3.2486,153.89,153.87,0.04789386]
[1724764765052,3.2486,153.89,153.87,3.29679386]
[1724764767457,4.3284577,153.91,153.87,0.04789386]
[1724764768555,7.5766577,153.91,153.88,3.2486]
[1724764768750,0.0484577,153.91,153.88,3.2486]
[1724764769262,3.2485,153.9,153.87,3.29679386]